[Event "Reykjavik Open 2025"]
[Site "Reykjavik, Iceland"]
[Date "2025.04.15"]
[Round "9.36"]
[White "Vroombout, Enrico"]
[Black "Fantinel, Thibault"]
[Result "1-0"]
[WhiteElo "2161"]
[WhiteFideId "1008730"]
[BlackElo "2411"]
[BlackTitle "IM"]
[BlackFideId "663395"]
[TimeControl "90+30 +30 after 40 moves"]
[Variant "Standard"]
[ECO "B48"]
[Opening "Sicilian Defense: Taimanov Variation, Bastrikov Variation, English Attack"]
[StudyName "Round 9"]
1. e4 { [%clk 1:30:59] } 1... c5 { [%clk 1:30:53] } 2. Nf3 { [%clk 1:31:25] } 2... e6 { [%clk 1:31:19] } 3. d4 { [%clk 1:31:48] } 3... cxd4 { [%clk 1:31:44] } 4. Nxd4 { [%clk 1:32:15] } 4... Nc6 { [%clk 1:32:09] } 5. Nc3 { [%clk 1:32:36] } 5... Qc7 { [%clk 1:32:33] } 6. Be3 { [%clk 1:32:49] } 6... a6 { [%clk 1:32:47] } 7. Bd3 { [%clk 1:32:51] } 7... Nf6 { [%clk 1:32:37] } 8. O-O { [%clk 1:32:58] } 8... b5 { [%clk 1:32:51] } 9. Nxc6 { [%clk 1:32:52] } 9... Qxc6 { [%clk 1:33:16] } 10. f3 { [%clk 1:30:56] } 10... Bc5 { [%clk 1:28:31] } 11. Qe1 { [%clk 1:21:24] } 11... d6 { [%clk 1:23:13] } 12. Kh1 { [%clk 1:21:04] } 12... Bb7 { [%clk 1:20:35] } 13. a4 { [%clk 1:14:42] } 13... b4 { [%clk 1:15:10] } 14. Nd5 { [%clk 1:08:02] } 14... Bxe3 { [%clk 1:15:27] } 15. Nxe3 { [%clk 1:08:26] } 15... Qc5 { [%clk 1:14:24] } 16. a5 { [%clk 1:05:27] } 16... Bc6 { [%clk 1:10:41] } 17. Nc4 { [%clk 0:55:17] } 17... Nd7 { [%clk 1:02:21] } 18. Qg3 { [%clk 0:46:08] } 18... Ke7 { [%clk 1:02:19] } 19. f4 { [%clk 0:34:55] } 19... Bb5 { [%clk 0:44:20] } 20. Ne3 { [%clk 0:30:09] } 20... h5 { [%clk 0:39:53] } 21. f5 { [%clk 0:18:17] } 21... Qe5 { [%clk 0:37:38] } 22. Qh4+ { [%clk 0:15:10] } 22... Qf6 { [%clk 0:30:45] } 23. Qh3 { [%clk 0:14:16] } 23... Qg5 { [%clk 0:28:50] } 24. fxe6 { [%clk 0:12:37] } 24... fxe6 { [%clk 0:29:06] } 25. Bc4 { [%clk 0:06:23] } 25... Nc5 { [%clk 0:26:36] } 26. Bxe6 { [%clk 0:06:04] } 26... Bxf1 { [%clk 0:23:16] } 27. Nd5+ { [%clk 0:06:27] } 27... Kd8 { [%clk 0:17:47] } 28. Rxf1 { [%clk 0:06:50] } 28... Re8 { [%clk 0:14:54] } 29. Nf4 { [%clk 0:04:30] } 29... Rf8 { [%clk 0:14:35] } 30. g3 { [%clk 0:02:18] } 30... Ra7 { [%clk 0:14:57] } 31. Bd5 { [%clk 0:02:23] } 31... Qg4 { [%clk 0:11:00] } 32. Qxg4 { [%clk 0:01:37] } 32... hxg4 { [%clk 0:11:27] } 33. Rd1 { [%clk 0:01:57] } 33... g5 { [%clk 0:10:54] } 34. Ng2 { [%clk 0:00:57] } 34... Rf2 { [%clk 0:10:23] } 35. Ne3 { [%clk 0:01:23] } 35... Re2 { [%clk 0:10:01] } 36. Nxg4 { [%clk 0:01:08] } 36... Rxc2 { [%clk 0:10:26] } 37. e5 { [%clk 0:01:14] } 37... Rxb2 { [%clk 0:08:09] } 38. exd6 { [%clk 0:01:34] } 38... Rg7 { [%clk 0:01:15] } 39. Rc1 { [%clk 0:00:46] } 39... Nd3 { [%clk 0:00:57] } 40. Rc6 { [%clk 0:00:50] } 40... Rb1+ { [%clk 0:00:55] } 41. Kg2 { [%clk 0:01:09] } 41... Rb7 { [%clk 0:10:55] } 42. Rxa6 { [%clk 0:22:09] } 42... Rb8 { [%clk 0:11:24] } 43. Ra7 { [%clk 0:20:05] } 43... Rd1 { [%clk 0:10:50] } 44. Rh7 { [%clk 0:10:40] } 44... Ne1+ { [%clk 0:10:22] } 45. Kf2 { [%clk 0:11:01] } 45... Rxd5 { [%clk 0:10:14] } 46. Rh8+ { [%clk 0:10:30] } 46... Kd7 { [%clk 0:10:43] } 47. Rxb8 { [%clk 0:10:54] } 47... Nd3+ { [%clk 0:11:05] } 48. Ke3 { [%clk 0:11:00] } 48... Rxd6 { [%clk 0:09:32] } 49. a6 { [%clk 0:09:59] } 49... Rxa6 { [%clk 0:08:52] } 50. Kxd3 { [%clk 0:10:17] } 50... Ra4 { [%clk 0:09:21] } 51. Nf2 { [%clk 0:04:55] } 51... Kc7 { [%clk 0:08:55] } 52. Rb5 { [%clk 0:04:11] } 52... Kc6 { [%clk 0:09:23] } 53. Rxg5 { [%clk 0:04:09] } 1-0

[Event "Reykjavik Open 2025"]
[Site "Reykjavik, Iceland"]
[Date "2025.04.15"]
[Round "9.37"]
[White "Thorfinnsson, Bjorn"]
[Black "Lacroix, Romain"]
[Result "1-0"]
[WhiteElo "2386"]
[WhiteTitle "IM"]
[WhiteFideId "2300982"]
[BlackElo "2101"]
[BlackTitle "CM"]
[BlackFideId "642592"]
[TimeControl "90+30 +30 after 40 moves"]
[Variant "Standard"]
[ECO "A46"]
[Opening "Torre Attack: Classical Defense"]
[StudyName "Round 9"]
1. d4 { [%clk 1:27:45] } 1... Nf6 { [%clk 1:30:21] } 2. Nf3 { [%clk 1:27:50] } 2... e6 { [%clk 1:30:34] } 3. Bg5 { [%clk 1:27:39] } 3... c5 { [%clk 1:30:34] } 4. e3 { [%clk 1:27:28] } 4... cxd4 { [%clk 1:30:13] } 5. exd4 { [%clk 1:27:48] } 5... Be7 { [%clk 1:29:05] } 6. Bd3 { [%clk 1:27:41] } 6... b6 { [%clk 1:27:48] } 7. Qe2 { [%clk 1:26:42] } 7... Bb7 { [%clk 1:26:14] } 8. Nbd2 { [%clk 1:26:48] } 8... Nc6 { [%clk 1:24:52] } 9. c3 { [%clk 1:26:36] } 9... Nd5 { [%clk 1:18:11] } 10. Ne4 { [%clk 1:24:53] } 10... d6 { [%clk 1:15:38] } 11. Bd2 { [%clk 1:21:00] } 11... h6 { [%clk 1:14:24] } 12. a3 { [%clk 1:10:17] } 12... a6 { [%clk 0:56:09] } 13. O-O { [%clk 1:02:25] } 13... Na5 { [%clk 0:49:54] } 14. Rae1 { [%clk 0:57:35] } 14... b5 { [%clk 0:43:07] } 15. a4 { [%clk 0:53:00] } 15... bxa4 { [%clk 0:43:31] } 16. c4 { [%clk 0:53:23] } 16... Nf6 { [%clk 0:43:36] } 17. Nxf6+ { [%clk 0:46:49] } 17... Bxf6 { [%clk 0:43:51] } 18. d5 { [%clk 0:46:55] } 18... e5 { [%clk 0:41:08] } 19. Nxe5 { [%clk 0:46:27] } 19... dxe5 { [%clk 0:37:41] } 20. f4 { [%clk 0:46:49] } 20... Qb6+ { [%clk 0:30:27] } 21. Be3 { [%clk 0:44:23] } 21... Qc7 { [%clk 0:30:34] } 22. fxe5 { [%clk 0:42:49] } 22... Bg5 { [%clk 0:30:04] } 23. Bf2 { [%clk 0:38:06] } 23... O-O-O { [%clk 0:21:21] } 24. h4 { [%clk 0:33:42] } 24... Be7 { [%clk 0:21:13] } 25. d6 { [%clk 0:33:50] } 25... Qc6 { [%clk 0:20:53] } 26. Bg3 { [%clk 0:33:48] } 26... Rhe8 { [%clk 0:17:14] } 27. Qf2 { [%clk 0:25:08] } 27... Nb3 { [%clk 0:14:09] } 28. Be4 { [%clk 0:20:01] } 28... Qxc4 { [%clk 0:14:14] } 29. Bxb7+ { [%clk 0:16:12] } 29... Kxb7 { [%clk 0:14:38] } 30. Qxf7 { [%clk 0:16:35] } 30... Qc5+ { [%clk 0:07:41] } 31. Bf2 { [%clk 0:16:27] } 31... Qc8 { [%clk 0:05:57] } 32. Re4 { [%clk 0:15:27] } 32... Rd7 { [%clk 0:04:49] } 33. Rxa4 { [%clk 0:13:05] } 33... Nc5 { [%clk 0:01:59] } 34. Qd5+ { [%clk 0:13:20] } 34... Kb6 { [%clk 0:01:36] } 35. Rb4+ { [%clk 0:13:26] } 1-0

[Event "Reykjavik Open 2025"]
[Site "Reykjavik, Iceland"]
[Date "2025.04.15"]
[Round "9.38"]
[White "Song, Yuxin"]
[Black "Beisteiner, Joachim"]
[Result "1-0"]
[WhiteElo "2371"]
[WhiteTitle "IM"]
[WhiteFideId "8614300"]
[BlackElo "2097"]
[BlackFideId "1682296"]
[TimeControl "90+30 +30 after 40 moves"]
[Variant "Standard"]
[ECO "B12"]
[Opening "Caro-Kann Defense: Advance Variation, Short Variation"]
[StudyName "Round 9"]
1. e4 { [%clk 1:30:57] } 1... c6 { [%clk 1:30:49] } 2. d4 { [%clk 1:31:21] } 2... d5 { [%clk 1:31:08] } 3. e5 { [%clk 1:31:46] } 3... Bf5 { [%clk 1:31:25] } 4. Nf3 { [%clk 1:32:10] } 4... e6 { [%clk 1:31:38] } 5. Be2 { [%clk 1:32:36] } 5... c5 { [%clk 1:31:45] } 6. Be3 { [%clk 1:32:59] } 6... cxd4 { [%clk 1:31:46] } 7. Nxd4 { [%clk 1:33:24] } 7... Ne7 { [%clk 1:32:05] } 8. O-O { [%clk 1:29:03] } 8... Nbc6 { [%clk 1:31:45] } 9. Bb5 { [%clk 1:29:23] } 9... a6 { [%clk 1:30:54] } 10. Bxc6+ { [%clk 1:29:48] } 10... bxc6 { [%clk 1:30:22] } 11. c4 { [%clk 1:30:13] } 11... Qd7 { [%clk 1:29:42] } 12. cxd5 { [%clk 1:16:39] } 12... Nxd5 { [%clk 1:25:44] } 13. Nxf5 { [%clk 1:15:40] } 13... exf5 { [%clk 1:26:02] } 14. Qf3 { [%clk 1:14:26] } 14... Be7 { [%clk 1:18:43] } 15. Nd2 { [%clk 1:14:11] } 15... O-O { [%clk 1:16:09] } 16. Nb3 { [%clk 1:04:15] } 16... Rfb8 { [%clk 1:14:45] } 17. Rfd1 { [%clk 0:56:23] } 17... a5 { [%clk 1:08:20] } 18. Rac1 { [%clk 0:56:38] } 18... Ra6 { [%clk 1:01:06] } 19. Bc5 { [%clk 0:53:33] } 19... g6 { [%clk 0:55:46] } 20. Qe2 { [%clk 0:41:06] } 20... Raa8 { [%clk 0:48:59] } 21. Bxe7 { [%clk 0:41:28] } 21... Qxe7 { [%clk 0:49:24] } 22. Nd4 { [%clk 0:41:56] } 22... Qg5 { [%clk 0:45:40] } 23. e6 { [%clk 0:29:55] } 23... Nf4 { [%clk 0:37:22] } 24. exf7+ { [%clk 0:30:20] } 24... Kxf7 { [%clk 0:37:24] } 25. Qc4+ { [%clk 0:30:46] } 25... Kg7 { [%clk 0:31:52] } 26. Qxc6 { [%clk 0:31:12] } 26... Re8 { [%clk 0:17:58] } 27. Qb7+ { [%clk 0:27:45] } 27... Kh8 { [%clk 0:13:30] } 28. Rc7 { [%clk 0:28:10] } 28... Ra7 { [%clk 0:13:43] } 29. Qc6 { [%clk 0:21:18] } 29... Rxc7 { [%clk 0:11:57] } 30. Qxe8+ { [%clk 0:21:44] } 30... Kg7 { [%clk 0:12:22] } 31. Qe5+ { [%clk 0:20:57] } 31... Kh6 { [%clk 0:11:48] } 32. g3 { [%clk 0:21:22] } 32... Nh3+ { [%clk 0:09:36] } 33. Kg2 { [%clk 0:20:29] } 33... Re7 { [%clk 0:09:24] } 34. Nxf5+ { [%clk 0:20:08] } 34... gxf5 { [%clk 0:06:00] } 35. Qd6+ { [%clk 0:20:37] } 35... Kg7 { [%clk 0:04:09] } 36. Kxh3 { [%clk 0:20:42] } 36... f4 { [%clk 0:00:44] } 37. Rd5 { [%clk 0:20:33] } 37... Qf6 { [%clk 0:00:35] } 38. Qxf6+ { [%clk 0:20:38] } 1-0

[Event "Reykjavik Open 2025"]
[Site "Reykjavik, Iceland"]
[Date "2025.04.15"]
[Round "9.39"]
[White "Li, Guohao"]
[Black "Clyde, Jordan"]
[Result "1/2-1/2"]
[WhiteElo "2356"]
[WhiteFideId "8619999"]
[BlackElo "2095"]
[BlackFideId "2616653"]
[TimeControl "90+30 +30 after 40 moves"]
[Variant "Standard"]
[ECO "A50"]
[Opening "Queen's Indian Accelerated"]
[StudyName "Round 9"]
1. d4 { [%clk 1:30:55] } 1... Nf6 { [%clk 1:30:04] } 2. c4 { [%clk 1:31:18] } 2... b6 { [%clk 1:30:19] } 3. Nf3 { [%clk 1:31:20] } 3... Bb7 { [%clk 1:30:03] } 4. Nc3 { [%clk 1:31:34] } 4... Ne4 { [%clk 1:29:38] } 5. Bd2 { [%clk 1:31:01] } 5... e6 { [%clk 1:26:58] } 6. e3 { [%clk 1:31:04] } 6... Nxd2 { [%clk 1:23:46] } 7. Qxd2 { [%clk 1:31:29] } 7... Bb4 { [%clk 1:24:03] } 8. d5 { [%clk 1:31:27] } 8... Qf6 { [%clk 1:22:42] } 9. Rc1 { [%clk 1:31:33] } 9... Na6 { [%clk 1:13:00] } 10. e4 { [%clk 1:16:00] } 10... Nc5 { [%clk 1:04:56] } 11. Bd3 { [%clk 1:16:22] } 11... Qf4 { [%clk 1:05:15] } 12. Bb1 { [%clk 1:11:57] } 12... Qxd2+ { [%clk 0:45:02] } 13. Nxd2 { [%clk 1:12:19] } 13... O-O { [%clk 0:37:27] } 14. O-O { [%clk 1:11:38] } 14... Na4 { [%clk 0:36:01] } 15. Nxa4 { [%clk 1:11:39] } 15... Bxd2 { [%clk 0:36:27] } 16. Rcd1 { [%clk 1:11:32] } 16... Bf4 { [%clk 0:34:11] } 17. g3 { [%clk 1:11:27] } 17... Bd6 { [%clk 0:33:12] } 18. f4 { [%clk 1:09:58] } 18... e5 { [%clk 0:30:56] } 19. f5 { [%clk 1:08:35] } 19... f6 { [%clk 0:25:25] } 20. h4 { [%clk 1:08:19] } 20... Be7 { [%clk 0:20:49] } 21. Kg2 { [%clk 1:03:12] } 21... Rfb8 { [%clk 0:20:22] } 22. a3 { [%clk 0:57:59] } 22... Kf8 { [%clk 0:17:40] } 23. Nc3 { [%clk 0:56:56] } 23... a6 { [%clk 0:17:32] } 24. Rf2 { [%clk 0:56:03] } 24... Bc5 { [%clk 0:16:29] } 25. Rfd2 { [%clk 0:55:46] } 25... a5 { [%clk 0:15:41] } 26. g4 { [%clk 0:35:56] } 26... Ba6 { [%clk 0:16:06] } 27. Ba2 { [%clk 0:36:21] } 27... d6 { [%clk 0:13:13] } 28. Kf3 { [%clk 0:35:01] } 28... b5 { [%clk 0:13:08] } 29. cxb5 { [%clk 0:35:14] } 29... Bxb5 { [%clk 0:13:32] } 30. Nxb5 { [%clk 0:35:40] } 30... Rxb5 { [%clk 0:13:58] } 31. Bc4 { [%clk 0:36:02] } 31... Rb6 { [%clk 0:13:06] } 32. a4 { [%clk 0:36:30] } 32... Rb4 { [%clk 0:12:17] } 33. b3 { [%clk 0:36:51] } 33... Rab8 { [%clk 0:12:21] } 34. Rd3 { [%clk 0:35:39] } 34... Ke7 { [%clk 0:12:30] } 35. g5 { [%clk 0:35:04] } 35... h6 { [%clk 0:11:32] } 36. Kg4 { [%clk 0:33:23] } 36... hxg5 { [%clk 0:11:39] } 37. hxg5 { [%clk 0:33:50] } 37... Rh8 { [%clk 0:12:01] } 38. Rh3 { [%clk 0:24:27] } 38... Rxh3 { [%clk 0:12:26] } 39. Kxh3 { [%clk 0:24:55] } 39... Rb8 { [%clk 0:11:01] } 40. gxf6+ { [%clk 0:24:21] } 40... gxf6 { [%clk 0:09:26] } 41. Kg3 { [%clk 0:24:29] } 41... Rg8+ { [%clk 0:05:50] } 42. Kf3 { [%clk 0:24:52] } 42... Rh8 { [%clk 0:06:16] } 43. Rd2 { [%clk 0:22:37] } 43... Rh4 { [%clk 0:06:27] } 44. Bd3 { [%clk 0:22:55] } 44... Rh3+ { [%clk 0:03:16] } 45. Kg4 { [%clk 0:23:16] } 45... Re3 { [%clk 0:27:50] } 46. Bc2 { [%clk 0:53:41] } 46... Kf7 { [%clk 0:28:17] } 47. Rh2 { [%clk 0:52:31] } 47... Kg7 { [%clk 0:28:34] } 48. Rg2 { [%clk 0:51:31] } 48... Bb4 { [%clk 0:28:05] } 49. Kh5+ { [%clk 0:49:34] } 49... Kf7 { [%clk 0:28:31] } 50. Rh2 { [%clk 0:45:56] } 50... Rg3 { [%clk 0:23:36] } 51. Bd1 { [%clk 0:45:09] } 51... Kg7 { [%clk 0:22:50] } 52. Rc2 { [%clk 0:40:48] } 52... Bc5 { [%clk 0:22:27] } 53. Kh4 { [%clk 0:41:12] } 53... Rg1 { [%clk 0:21:19] } 54. Bf3 { [%clk 0:41:13] } 54... Kh6 { [%clk 0:21:16] } 55. Bg2 { [%clk 0:39:17] } 55... Re1 { [%clk 0:19:42] } 56. Kg4 { [%clk 0:37:48] } 56... Re3 { [%clk 0:19:27] } 57. Rb2 { [%clk 0:38:16] } 57... Ba3 { [%clk 0:16:58] } 58. Rb1 { [%clk 0:38:44] } 58... Rc3 { [%clk 0:17:16] } 59. Bf1 { [%clk 0:37:32] } 59... Re3 { [%clk 0:11:22] } 60. Bg2 { [%clk 0:37:53] } 60... Rc3 { [%clk 0:11:49] } 61. Bf3 { [%clk 0:38:09] } 61... Rc1 { [%clk 0:12:02] } 62. Rxc1 { [%clk 0:38:35] } 62... Bxc1 { [%clk 0:12:30] } 63. Bd1 { [%clk 0:38:42] } 63... Bd2 { [%clk 0:12:43] } 64. Kf3 { [%clk 0:39:07] } 64... Bb4 { [%clk 0:12:28] } 65. Ke3 { [%clk 0:39:30] } 65... Kg7 { [%clk 0:12:28] } 66. Kd3 { [%clk 0:39:54] } 66... Kf8 { [%clk 0:12:54] } 67. Kc4 { [%clk 0:40:19] } 67... Ke7 { [%clk 0:13:21] } 68. Kb5 { [%clk 0:40:45] } 68... Kd8 { [%clk 0:13:41] } 69. Bh5 { [%clk 0:41:10] } 69... Bc3 { [%clk 0:14:07] } 70. Bf7 { [%clk 0:41:34] } 70... Bb4 { [%clk 0:14:34] } 71. Kc6 { [%clk 0:41:37] } 71... Bc3 { [%clk 0:14:56] } 72. Bh5 { [%clk 0:41:39] } 72... Bb4 { [%clk 0:15:20] } 73. Bf7 { [%clk 0:41:46] } 73... Bc3 { [%clk 0:15:44] } 74. Bh5 { [%clk 0:42:13] } 74... Bb4 { [%clk 0:16:08] } 1/2-1/2

[Event "Reykjavik Open 2025"]
[Site "Reykjavik, Iceland"]
[Date "2025.04.15"]
[Round "9.40"]
[White "Lohr, Matthias"]
[Black "Ruiz Buendia, Miguel"]
[Result "1/2-1/2"]
[WhiteElo "2092"]
[WhiteFideId "4692772"]
[BlackElo "2353"]
[BlackTitle "FM"]
[BlackFideId "24537675"]
[TimeControl "90+30 +30 after 40 moves"]
[Variant "Standard"]
[ECO "B90"]
[Opening "Sicilian Defense: Najdorf Variation, Adams Attack"]
[StudyName "Round 9"]
1. e4 { [%clk 1:29:50] } 1... c5 { [%clk 1:30:36] } 2. Nf3 { [%clk 1:28:26] } 2... d6 { [%clk 1:30:55] } 3. d4 { [%clk 1:28:44] } 3... cxd4 { [%clk 1:31:15] } 4. Nxd4 { [%clk 1:29:09] } 4... Nf6 { [%clk 1:31:39] } 5. Nc3 { [%clk 1:29:33] } 5... a6 { [%clk 1:31:46] } 6. h3 { [%clk 1:29:57] } 6... e5 { [%clk 1:31:29] } 7. Nf3 { [%clk 1:30:17] } 7... Be7 { [%clk 1:25:52] } 8. g4 { [%clk 1:29:09] } 8... h6 { [%clk 1:25:39] } 9. Rg1 { [%clk 1:28:38] } 9... g5 { [%clk 1:14:00] } 10. Nd2 { [%clk 1:20:41] } 10... b5 { [%clk 1:10:58] } 11. a4 { [%clk 1:19:36] } 11... b4 { [%clk 1:11:14] } 12. Nd5 { [%clk 1:20:00] } 12... Nxd5 { [%clk 1:09:56] } 13. exd5 { [%clk 1:20:28] } 13... Nd7 { [%clk 1:07:22] } 14. a5 { [%clk 1:13:12] } 14... Bb7 { [%clk 1:05:23] } 15. Nc4 { [%clk 1:12:49] } 15... Rc8 { [%clk 1:01:47] } 16. Ne3 { [%clk 1:09:02] } 16... Rc5 { [%clk 0:55:36] } 17. Bd2 { [%clk 1:06:18] } 17... Rxa5 { [%clk 0:54:50] } 18. Bxb4 { [%clk 1:06:42] } 18... Rxa1 { [%clk 0:55:03] } 19. Qxa1 { [%clk 1:07:07] } 19... Qb6 { [%clk 0:48:12] } 20. c3 { [%clk 1:01:55] } 20... Nf6 { [%clk 0:46:01] } 21. Qa4+ { [%clk 0:59:52] } 21... Kf8 { [%clk 0:46:14] } 22. c4 { [%clk 0:54:14] } 22... h5 { [%clk 0:42:55] } 23. Qa5 { [%clk 0:51:31] } 23... Qxa5 { [%clk 0:40:44] } 24. Bxa5 { [%clk 0:51:59] } 24... hxg4 { [%clk 0:39:53] } 25. hxg4 { [%clk 0:49:35] } 25... Bc8 { [%clk 0:39:11] } 26. Bd3 { [%clk 0:47:09] } 26... e4 { [%clk 0:37:02] } 27. Be2 { [%clk 0:46:40] } 27... Nd7 { [%clk 0:36:55] } 28. Nf5 { [%clk 0:43:19] } 28... Ne5 { [%clk 0:36:00] } 29. Nxe7 { [%clk 0:40:48] } 29... Kxe7 { [%clk 0:36:23] } 30. Bc3 { [%clk 0:41:12] } 30... f6 { [%clk 0:26:45] } 31. Bxe5 { [%clk 0:40:09] } 31... fxe5 { [%clk 0:27:01] } 32. Kd2 { [%clk 0:37:52] } 32... Rh3 { [%clk 0:26:25] } 33. Rg3 { [%clk 0:36:10] } 33... Rxg3 { [%clk 0:17:53] } 34. fxg3 { [%clk 0:36:39] } 34... a5 { [%clk 0:17:37] } 35. Ke3 { [%clk 0:36:18] } 35... Kf6 { [%clk 0:16:17] } 36. Kxe4 { [%clk 0:36:41] } 36... Bd7 { [%clk 0:13:33] } 37. Bd1 { [%clk 0:35:47] } 37... Be8 { [%clk 0:06:16] } 38. Ke3 { [%clk 0:32:37] } 38... Bg6 { [%clk 0:04:53] } 39. Bf3 { [%clk 0:27:04] } 39... Bc2 { [%clk 0:03:22] } 40. Be2 { [%clk 0:27:17] } 40... Ke7 { [%clk 0:01:10] } 41. Kd2 { [%clk 0:25:57] } 41... Be4 { [%clk 0:26:30] } 42. Ke3 { [%clk 0:45:53] } 42... Bc2 { [%clk 0:25:31] } 43. Kd2 { [%clk 0:37:58] } 43... Be4 { [%clk 0:25:15] } 44. Ke3 { [%clk 0:32:37] } 1/2-1/2

[Event "Reykjavik Open 2025"]
[Site "Reykjavik, Iceland"]
[Date "2025.04.15"]
[Round "9.41"]
[White "Blanchet, Mathieu"]
[Black "Ragnarsson, Dagur"]
[Result "0-1"]
[WhiteElo "2091"]
[WhiteFideId "26052610"]
[BlackElo "2352"]
[BlackTitle "IM"]
[BlackFideId "2304058"]
[TimeControl "90+30 +30 after 40 moves"]
[Variant "Standard"]
[ECO "D35"]
[Opening "Queen's Gambit Declined: Exchange Variation, Positional Variation"]
[StudyName "Round 9"]
1. d4 { [%clk 1:30:58] } 1... d5 { [%clk 1:30:49] } 2. c4 { [%clk 1:31:23] } 2... e6 { [%clk 1:31:15] } 3. Nc3 { [%clk 1:31:47] } 3... Nf6 { [%clk 1:31:40] } 4. cxd5 { [%clk 1:32:13] } 4... exd5 { [%clk 1:32:06] } 5. Bg5 { [%clk 1:32:35] } 5... c6 { [%clk 1:31:51] } 6. e3 { [%clk 1:32:59] } 6... h6 { [%clk 1:32:17] } 7. Bh4 { [%clk 1:33:09] } 7... Be7 { [%clk 1:32:43] } 8. Qc2 { [%clk 1:33:29] } 8... O-O { [%clk 1:33:07] } 9. Bd3 { [%clk 1:33:54] } 9... Ne8 { [%clk 1:33:26] } 10. Bxe7 { [%clk 1:31:24] } 10... Qxe7 { [%clk 1:33:49] } 11. Nge2 { [%clk 1:31:42] } 11... Nd6 { [%clk 1:33:50] } 12. Ng3 { [%clk 1:30:15] } 12... Be6 { [%clk 1:20:00] } 13. O-O { [%clk 1:29:41] } 13... Nd7 { [%clk 1:20:18] } 14. Rae1 { [%clk 1:25:39] } 14... Rac8 { [%clk 1:19:03] } 15. f3 { [%clk 1:17:56] } 15... c5 { [%clk 1:19:28] } 16. Nf5 { [%clk 1:16:25] } 16... Nxf5 { [%clk 1:19:36] } 17. Bxf5 { [%clk 1:16:41] } 17... Qf6 { [%clk 0:59:21] } 18. Nxd5 { [%clk 1:04:45] } 18... Bxd5 { [%clk 0:59:44] } 19. Bxd7 { [%clk 1:05:11] } 19... Rcd8 { [%clk 1:00:09] } 20. Bb5 { [%clk 0:55:05] } 20... cxd4 { [%clk 1:00:03] } 21. exd4 { [%clk 0:44:01] } 21... Qxd4+ { [%clk 0:54:37] } 22. Kh1 { [%clk 0:42:56] } 22... Bxa2 { [%clk 0:50:33] } 23. Re4 { [%clk 0:33:52] } 23... Qb6 { [%clk 0:46:02] } 24. Bd3 { [%clk 0:26:49] } 24... Qb3 { [%clk 0:42:52] } 25. Qxb3 { [%clk 0:26:38] } 25... Bxb3 { [%clk 0:43:16] } 26. Re3 { [%clk 0:23:13] } 26... Be6 { [%clk 0:34:45] } 27. h3 { [%clk 0:22:11] } 27... Rd4 { [%clk 0:34:02] } 28. Be4 { [%clk 0:20:49] } 28... Rb4 { [%clk 0:34:25] } 29. Rf2 { [%clk 0:21:14] } 29... Rc8 { [%clk 0:32:55] } 30. Rd2 { [%clk 0:21:05] } 30... Kf8 { [%clk 0:33:05] } 31. Kg1 { [%clk 0:20:09] } 31... Ke7 { [%clk 0:30:39] } 32. Kf2 { [%clk 0:17:00] } 32... Rc5 { [%clk 0:30:43] } 33. Kg3 { [%clk 0:14:49] } 33... g5 { [%clk 0:30:59] } 34. Kf2 { [%clk 0:14:37] } 34... Kf6 { [%clk 0:28:45] } 35. Ra3 { [%clk 0:08:59] } 35... a6 { [%clk 0:28:43] } 36. Kg3 { [%clk 0:05:59] } 36... Rcb5 { [%clk 0:27:54] } 37. Rd8 { [%clk 0:06:22] } 37... h5 { [%clk 0:28:00] } 38. h4 { [%clk 0:06:27] } 38... gxh4+ { [%clk 0:28:24] } 39. Kxh4 { [%clk 0:05:26] } 39... Ke7 { [%clk 0:25:33] } 40. Rh8 { [%clk 0:05:14] } 40... f5 { [%clk 0:25:52] } 41. Rxh5 { [%clk 0:04:56] } 41... fxe4 { [%clk 0:26:14] } 42. Rxb5 { [%clk 0:05:20] } 42... Rxb5 { [%clk 0:26:28] } 0-1